bitfinex-derivatives/quotes_ETHF0:USTF0_20210401
["timestamp","ask_amount","ask_price","bid_price","bid_amount"]
[1617259398191,71.8956032,1919.8,1919.7,33.4109]
[1617259398993,101.8956032,1919.8,1919.7,33.4109]
[1617259400396,35.1613032,1919.8,1919.7,33.4109]
[1617259400596,35.1613032,1919.8,1919.7,33.3429]
[1617259400796,35.1613032,1919.8,1919.7,32.9689]
[1617259400996,35.1613032,1919.8,1919.7,118.4417]
[1617259401197,40.04732199,1919.8,1919.7,118.3487]
[1617259403305,42.18289398,1919.8,1919.7,118.3487]
[1617259403605,42.18289398,1919.8,1919.7,31.5979]
[1617259404408,42.18289398,1919.8,1919.7,30.5448]
[1617259404607,12.18289398,1919.8,1919.7,30.5448]
[1617259405006,6.07542199,1919.8,1919.7,30.5448]
[1617259405207,36.07542199,1919.8,1919.7,30.5448]
[1617259405408,42.18304149,1919.8,1919.7,30.5448]
[1617259405610,42.18304149,1919.8,1919.7,30.3968]
[1617259406911,42.18304149,1919.8,1919.7,29.3418]
[1617259407311,12.18304149,1919.8,1919.7,29.3418]
[1617259407511,42.18304149,1919.8,1919.7,29.3418]
[1617259407712,38.07542199,1919.8,1919.7,29.3418]
[1617259408112,14.18318115,1919.8,1919.7,29.3418]
[1617259408713,8.07542199,1919.8,1919.7,29.3418]
[1617259409514,38.07542199,1919.8,1919.7,29.3418]
[1617259409914,44.1831797,1919.8,1919.7,28.9577]
[1617259410214,42.04760771,1919.8,1919.7,28.9577]
[1617259410414,42.04760771,1919.8,1919.7,27.9037]
[1617259410616,45.09738881,1919.8,1919.7,26.9332]
[1617259411015,42.04760771,1919.8,1919.7,26.1342]
[1617259412018,42.04760771,1919.8,1919.7,24.9901]
[1617259412821,42.04760771,1919.8,1919.7,23.1565]
[1617259413220,42.04760771,1919.8,1919.7,22.6395]
[1617259413620,46.31634583,1919.8,1919.7,22.6395]
[1617259413821,46.31634583,1919.8,1919.7,21.0885]
[1617259414222,46.31634583,1919.8,1919.7,20.5515]
[1617259414423,45.09374308,1919.8,1919.7,20.5515]
[1617259414824,42.04760771,1919.8,1919.7,20.5515]
[1617259416224,43.70960771,1919.8,1919.7,20.5515]
[1617259417025,106.93425771,1919.8,1919.7,20.5515]
[1617259417427,109.84120771,1919.8,1919.7,20.5515]
[1617259417825,107.84120771,1919.8,1919.7,20.2395]
[1617259420828,107.84120771,1919.8,1919.7,18.2904]
[1617259421029,110.88735804,1919.8,1919.7,18.2904]
[1617259421227,110.88735804,1919.8,1919.7,15.524]
[1617259421428,110.88735804,1919.8,1919.7,9.4]
[1617259421629,80.88735804,1919.8,1919.7,9.103]
[1617259421829,77.84120771,1919.8,1919.7,9.103]
[1617259425631,11.70960771,1919.8,1919.7,9.103]
[1617259425833,9.01470771,1919.8,1919.7,10.1466]
[1617259426033,5.34538977,1919.8,1919.7,10.1466]
[1617259426432,2.90695,1919.8,1919.7,10.1466]
[1617259426634,3.88065395,1919.8,1919.7,10.1466]
[1617259427634,3.88065395,1919.8,1919.7,13.05355]
[1617259430736,2.90695,1919.8,1919.7,13.05355]
[1617259434039,3.63695214,1919.8,1919.7,13.05355]
[1617259434239,2.90695,1919.8,1919.7,13.05355]
[1617259434839,2.90695,1919.8,1919.7,12.00995]
[1617259435239,3.95825,1919.8,1919.7,9.103]
[1617259435842,4.93161898,1919.8,1919.7,9.103]
[1617259436443,3.95825,1919.8,1919.7,9.103]
[1617259436642,33.95825,1919.8,1919.7,9.103]
[1617259436843,33.95825,1919.8,1919.7,8.1017]
[1617259437042,33.95825,1919.8,1919.7,8.0164]
[1617259437243,40.0664102,1919.8,1919.7,8.0164]
[1617259437443,35.17988204,1919.8,1919.7,8.0164]
[1617259437844,43.11232563,1919.8,1919.7,8.0164]
[1617259438244,40.06667129,1919.8,1919.7,6.9702]
[1617259439846,13.11085088,1919.8,1919.7,6.9702]
[1617259440244,13.11085088,1919.8,1919.7,6.0547]
[1617259440444,43.11085088,1919.8,1919.7,6.0547]
[1617259440646,13.11085088,1919.8,1919.7,5.9167]
[1617259440846,10.06667129,1919.8,1919.7,5.9167]
[1617259441046,3.95825,1919.8,1919.7,5.9167]
[1617259441445,33.95825,1919.8,1919.7,5.7226]
[1617259441844,43.11115171,1919.8,1919.7,5.7226]
[1617259442046,43.11115171,1919.8,1919.7,1.6007]
[1617259442246,43.11115171,1919.8,1919.4,83.2005]
[1617259442247,43.11115171,1919.8,1919.4,82.6071]
[1617259442445,68.3989,1919.7,1919.4,82.0058]
[1617259442647,68.3989,1919.7,1919.4,80.097]
[1617259442648,69.8019,1919.7,1919.4,80.097]
[1617259442845,1.403,1919.7,1918.5,14.2965]
[1617259443047,68.3633,1919.4,1918.9,68.3633]
[1617259443247,0.97321944,1919.1,1918.9,68.3633]
[1617259443447,0.97321944,1919.1,1918.9,67.6773]
[1617259443649,2.90695,1919.0,1918.9,67.6773]
[1617259444048,2.90695,1919.0,1918.7,2.90695]
[1617259444248,71.969,1918.8,1918.7,2.90695]
[1617259445550,74.87595,1918.8,1918.7,2.90695]
[1617259446552,74.87595,1918.8,1918.5,14.2965]
[1617259446753,75.60585053,1918.8,1918.5,14.2965]
[1617259447554,2.90695,1918.6,1918.5,17.20345]
[1617259448858,3.05899585,1918.6,1918.5,17.20345]
[1617259449655,3.21104404,1918.6,1918.5,17.20345]
[1617259450157,4.26164404,1918.6,1918.5,17.20345]
[1617259452262,4.26164404,1918.6,1918.5,14.2965]
[1617259452563,4.44411882,1918.6,1918.5,14.2965]
[1617259452862,4.74822772,1918.6,1918.5,14.2965]
[1617259453262,4.2616589,1918.6,1918.5,14.2965]
[1617259453664,4.10947553,1918.6,1918.5,14.2965]
[1617259457872,4.44409795,1918.6,1918.5,14.2965]
[1617259458771,3.95755,1918.6,1918.5,14.2965]
[1617259459572,4.68747047,1918.6,1918.5,14.2965]
[1617259462476,3.95755,1918.6,1918.5,14.2965]
[1617259462872,83.38555,1918.6,1918.5,14.2965]
[1617259463474,83.68964753,1918.6,1918.5,14.2965]
[1617259464176,4.26164753,1918.6,1918.5,14.2965]
[1617259464578,4.10955133,1918.6,1918.5,14.2965]
[1617259464974,3.05895133,1918.6,1918.5,14.2965]
[1617259465374,2.96774869,1918.6,1918.5,14.2965]
[1617259465776,2.93734861,1918.6,1918.5,17.20345]
[1617259467479,0.03039861,1918.6,1918.5,17.20345]
[1617259468882,0.06082388,1918.6,1918.5,17.20345]
[1617259470282,0.03041191,1918.6,1918.5,17.20345]
[1617259471683,0.01520498,1918.6,1918.5,17.20345]
[1617259473487,0.01520431,1918.7,1918.6,71.6777]
[1617259473688,0.01520431,1918.7,1918.6,72.8122]
[1617259476090,0.01520431,1918.7,1918.6,122.8122]
[1617259476591,0.01520431,1918.7,1918.6,51.1345]
[1617259477796,0.01520489,1919.0,1918.6,81.1345]
[1617259477996,0.01520489,1919.0,1918.9,2.90695]
[1617259478195,0.01520422,1919.1,1918.9,2.90695]
[1617259481099,0.01520332,1919.2,1918.9,2.90695]
[1617259481998,0.01520332,1919.2,1919.1,2.90695]
[1617259482600,0.03041064,1919.2,1919.1,2.90695]
[1617259487805,0.01520524,1919.2,1919.1,2.90695]
[1617259488805,0.01518746,1919.4,1919.1,2.90695]
[1617259490108,0.01518746,1919.4,1919.3,2.90695]
[1617259493108,0.01518252,1919.5,1919.3,2.90695]
[1617259495010,0.01518278,1919.4,1919.3,2.90695]
[1617259496211,0.01518274,1919.5,1919.4,76.2962]
[1617259496411,0.0303661,1919.5,1919.4,76.2962]
[1617259497217,0.06073293,1919.5,1919.4,76.2962]
[1617259497818,0.06073293,1919.5,1919.4,77.9507]
[1617259499918,0.03035531,1919.5,1919.4,77.9507]
[1617259502118,0.0151767,1919.5,1919.4,77.9507]
[1617259504920,0.01517092,1919.6,1919.4,77.9507]
[1617259505321,0.04551297,1919.6,1919.4,76.2962]
[1617259505724,0.01517101,1919.5,1919.4,76.2962]
[1617259511428,0.03034205,1919.6,1919.4,76.2962]
[1617259511628,0.03034205,1919.6,1919.4,77.6876]
[1617259511828,0.01517106,1919.5,1919.4,77.6876]
[1617259513831,0.04551311,1919.6,1919.4,77.6876]
[1617259514235,0.04551311,1919.6,1919.5,2.90695]
[1617259515532,0.01517106,1919.6,1919.5,2.90695]
[1617259516333,2.93728373,1919.7,1919.5,2.90695]
[1617259516334,2.9221086,1919.7,1919.5,2.90695]
[1617259518537,0.01515862,1919.6,1919.5,2.90695]
[1617259519538,2.92210853,1919.7,1919.5,2.90695]
[1617259521437,2.92210853,1919.7,1919.5,52.90695]
[1617259523341,0.01515853,1919.7,1919.5,52.90695]
[1617259523542,0.04547524,1919.8,1919.5,52.90695]
[1617259523941,0.01515818,1919.8,1919.5,52.90695]
[1617259524344,0.01515818,1919.8,1919.7,2.90695]
[1617259524943,0.01515658,1920.1,1919.7,2.90695]
[1617259526347,0.01515658,1920.1,1920.0,2.90695]
[1617259526544,0.01515658,1920.1,1920.0,4.43235]
[1617259526745,0.01515589,1920.2,1920.0,4.43235]
[1617259526946,0.01515589,1920.1,1920.0,4.43235]
[1617259527545,0.01515576,1920.2,1920.0,4.43235]
[1617259527948,0.01513739,1920.3,1920.0,4.43235]
[1617259528347,12.61427478,1920.4,1920.0,4.43235]
[1617259528348,12.5991339,1920.4,1920.3,66.8817]
[1617259533051,12.584,1920.4,1920.3,66.8817]
[1617259540661,10.0,1920.4,1920.3,66.8817]
[1617259542167,10.0,1920.4,1920.2,2.90695]
[1617259543764,10.0,1920.4,1920.2,32.90695]
[1617259548471,10.0,1920.4,1920.2,82.90695]
[1617259550074,10.0,1920.4,1920.3,79.8606]
[1617259550272,10.0,1920.4,1920.2,52.90695]
[1617259551273,10.0,1920.4,1920.3,99.278]
[1617259551473,10.0,1920.4,1920.2,52.90695]
[1617259555478,10.0,1920.4,1920.3,77.5224]
[1617259555678,10.0,1920.4,1920.2,52.90695]
[1617259556278,10.0,1920.4,1920.3,88.6429]
[1617259556477,10.0,1920.4,1920.2,52.90695]
[1617259557978,10.0,1920.4,1920.3,86.5779]
[1617259558179,10.0,1920.4,1920.2,52.90695]
[1617259559278,10.0,1920.4,1920.2,145.28305]
[1617259559478,10.0,1920.4,1920.2,52.90695]
[1617259559880,10.0,1920.4,1920.2,125.51865]
[1617259560079,10.0,1920.4,1920.2,52.90695]
[1617259561378,10.0,1920.4,1920.2,131.61555]
[1617259561579,10.0,1920.4,1920.2,52.90695]
[1617259565885,45.6944,1921.1,1920.2,52.90695]
[1617259566083,2.92205762,1921.3,1920.2,52.90695]
[1617259566282,2.92205762,1921.3,1921.2,58.3126]
[1617259566684,2.92205762,1921.3,1921.2,61.21955]
[1617259567287,2.96744451,1921.3,1921.2,61.21955]
[1617259569595,2.96744451,1921.3,1921.2,2.90695]
[1617259569995,68.08704451,1921.3,1921.2,2.90695]
[1617259574498,68.05679618,1921.3,1921.2,2.90695]
[1617259574699,69.10219618,1921.3,1921.2,2.90695]
[1617259574900,68.07191397,1921.3,1921.2,2.90695]
[1617259575201,68.04166779,1921.3,1921.2,2.90695]
[1617259575604,68.02655,1921.3,1921.2,2.90695]
[1617259583509,68.02655,1921.3,1921.2,4.19355]
[1617259584713,2.90695,1921.3,1921.2,4.19355]
[1617259586814,2.90695,1921.5,1921.2,4.19355]
[1617259588217,15.0,1921.3,1921.2,4.19355]
[1617259589416,15.0,1921.3,1921.2,54.19355]
[1617259599823,8.9592,1921.3,1921.2,84.19355]
[1617259600022,5.6453,1921.3,1921.2,84.19355]
[1617259600222,2.584,1921.8,1921.2,84.19355]
[1617259600426,2.59911844,1922.7,1921.4,30.0]
[1617259600824,5.50606844,1922.7,1922.6,3.99285]
[1617259601024,2.92206844,1922.7,1922.6,3.99285]
[1617259601224,2.90695,1922.7,1922.6,3.99285]
[1617259601626,2.92206826,1922.7,1922.6,3.99285]
[1617259602926,2.95230474,1922.7,1922.6,3.99285]
[1617259603328,2.92206826,1922.7,1922.6,3.99285]
[1617259603927,2.93718748,1922.7,1922.6,3.99285]
[1617259604632,2.95230606,1922.7,1922.6,3.99285]
[1617259605031,2.92206858,1922.7,1922.6,3.99285]
[1617259605429,0.06047357,1922.9,1922.7,72.5987]
[1617259605833,0.21204578,1922.8,1922.7,72.5987]
[1617259606032,0.09124578,1922.8,1922.7,72.5987]
[1617259606230,0.1514598,1922.9,1922.7,72.5987]
[1617259606631,0.3029196,1923.0,1922.7,72.5987]
[1617259606833,3.20985353,1923.1,1922.9,2.90695]
[1617259607532,2.90695,1923.1,1922.9,2.90695]
[1617259608030,0.30291864,1923.0,1922.9,2.90695]
[1617259609032,3.39161983,1923.1,1922.9,2.90695]
[1617259609033,2.90695,1923.1,1922.9,2.90695]
[1617259613635,2.584,1923.4,1922.9,2.90695]
[1617259614838,2.584,1923.4,1922.6,1.0859]
[1617259614839,5.49095,1923.4,1923.3,2.90695]
[1617259615437,7.88055,1923.0,1922.6,1.0859]
[1617259615637,7.88055,1923.0,1921.9,45.0172]
[1617259616838,7.88055,1923.0,1922.9,2.90695]
[1617259620447,7.88055,1923.0,1922.9,52.90695]
[1617259627260,66.74735,1923.0,1922.9,52.90695]
[1617259631063,7.88055,1923.0,1922.9,52.90695]
[1617259634264,7.88055,1923.0,1922.9,50.0]
[1617259635064,10.7875,1923.0,1922.9,50.0]
[1617259641071,3.09750878,1924.1,1922.9,52.90695]
[1617259641271,2.0,1924.0,1922.9,52.90695]
[1617259641471,64.134,1923.1,1922.9,52.90695]
[1617259642274,14.0,1923.0,1922.9,52.90695]
[1617259643076,16.90695,1923.0,1922.9,52.90695]
[1617259645283,16.90695,1923.0,1922.9,50.0]
[1617259647787,20.00445878,1923.0,1922.9,50.0]
[1617259648188,20.00445878,1923.0,1922.9,47.9861]
[1617259649387,20.00445878,1923.0,1922.9,47.5752]
[1617259650188,20.00445878,1923.0,1922.9,46.5652]
[1617259650788,81.06015878,1923.0,1922.9,46.5652]
[1617259651389,81.06015878,1923.0,1922.9,46.3611]
[1617259651590,77.96265,1923.0,1922.9,46.3611]
[1617259652592,16.90695,1923.0,1922.9,46.3611]
[1617259653193,16.90695,1923.0,1922.9,49.26805]
[1617259654194,76.61295,1923.0,1922.9,49.26805]
[1617259663404,76.61295,1923.0,1922.9,46.3611]
[1617259667507,76.61295,1923.0,1922.9,44.8601]
[1617259667706,76.61295,1923.0,1922.9,44.7821]
[1617259667906,76.61295,1923.0,1922.9,44.2891]
[1617259674616,106.61295,1923.0,1922.9,44.2891]
[1617259674816,106.61295,1923.0,1922.9,43.3801]
[1617259678418,106.61295,1923.0,1922.9,39.9212]
[1617259678618,106.61295,1923.0,1922.9,39.0297]
[1617259678818,106.61295,1923.0,1922.9,37.6637]
[1617259680119,106.61295,1923.0,1922.9,37.0807]
[1617259680520,106.61295,1923.0,1922.9,35.6138]
[1617259683528,46.90695,1923.0,1922.9,33.5567]
[1617259683726,47.87571481,1923.0,1922.9,33.5567]
[1617259683926,47.87571481,1923.0,1922.9,30.4871]
[1617259684330,47.87571481,1923.0,1922.9,28.4572]
[1617259684527,49.87571481,1923.0,1922.9,23.8111]
[1617259684927,48.90695,1923.0,1922.9,23.8111]
[1617259685531,50.11804637,1923.0,1922.9,23.8111]
[1617259685928,48.90695,1923.0,1922.9,23.8111]
[1617259686328,48.90695,1923.0,1922.9,22.2559]
[1617259686728,109.68045,1923.0,1922.9,22.2559]
[1617259686929,48.90695,1923.0,1922.9,21.1977]
[1617259687134,46.90695,1923.0,1922.9,21.1977]
[1617259687329,47.8758034,1923.0,1922.9,20.9416]
[1617259687529,47.8758034,1923.0,1922.9,18.5826]
[1617259687730,47.8758034,1923.0,1922.9,18.3025]
[1617259687929,47.8758034,1923.0,1922.9,15.3824]
[1617259688132,47.8758034,1923.0,1922.9,14.2784]
[1617259688331,47.8758034,1923.0,1922.9,13.2924]
[1617259688531,17.8758034,1923.0,1922.9,13.2924]
[1617259689331,17.8758034,1923.0,1922.9,16.19935]
[1617259690536,17.8758034,1923.0,1922.9,75.46585]
[1617259691136,14.9688534,1923.0,1922.9,75.46585]
[1617259691435,14.9688534,1923.0,1922.9,16.19935]
[1617259694738,14.9688534,1923.0,1922.9,96.19975]
[1617259697239,14.9688534,1923.0,1922.9,16.19935]
[1617259708754,14.9688534,1923.0,1922.9,46.19935]
[1617259714158,14.9688534,1923.0,1922.9,16.19935]
[1617259714356,14.9688534,1923.0,1922.9,66.19935]
[1617259715457,14.9688534,1923.0,1922.9,140.68815]
[1617259716659,14.9688534,1923.0,1922.9,66.19935]
[1617259722565,14.9688534,1923.0,1922.9,96.19935]
[1617259723965,12.6275534,1923.0,1922.9,96.19935]
[1617259724367,2.584,1924.1,1922.9,96.19935]
[1617259724566,0.72681514,1924.3,1923.0,65.9376]
[1617259724766,0.72681514,1924.3,1923.1,30.0]
[1617259724966,0.72681514,1924.3,1923.2,2.0]
[1617259725165,76.4564,1924.5,1923.3,30.0]
[1617259725365,76.4564,1924.5,1923.3,32.0]
[1617259727868,76.4564,1924.5,1924.4,0.93809882]
[1617259731672,76.4564,1924.5,1923.1,30.0]
[1617259731873,77.7895,1924.5,1924.2,2.90695]
[1617259732072,1.3331,1924.5,1924.2,2.90695]
[1617259732473,1.3331,1924.5,1923.9,67.3399]
[1617259733874,2.90695,1924.0,1923.9,67.3399]
[1617259734076,4.52355,1924.0,1923.7,2.90695]
[1617259734274,75.99875,1924.0,1923.7,2.90695]
[1617259735775,2.90695,1923.8,1923.7,2.90695]
[1617259736878,2.90695,1923.8,1923.7,63.40475]
[1617259737179,2.90695,1923.8,1923.7,2.90695]
[1617259738381,0.72403815,1924.8,1923.7,2.90695]
[1617259738581,0.72403815,1924.8,1923.8,83.5594]
[1617259738981,8.73838421,1925.0,1923.8,1.4139]
[1617259738982,8.49696777,1925.0,1923.8,1.4139]
[1617259739181,8.49696777,1925.0,1924.7,79.0728]
[1617259739381,7.773,1925.0,1924.7,80.6228]
[1617259739983,2.90695,1924.8,1924.7,80.6228]
[1617259740582,2.90695,1924.8,1924.7,79.0728]
[1617259742983,2.90695,1924.8,1924.3,2.90695]
[1617259743183,3.93465,1924.8,1924.3,2.90695]
[1617259743583,13.93465,1924.8,1924.3,83.633]
[1617259743887,2.90695,1924.4,1924.3,83.633]
[1617259746387,2.90695,1924.4,1924.3,96.9254]
[1617259751791,2.90695,1924.4,1924.3,13.2924]
[1617259752194,2.90695,1924.4,1924.3,63.2924]
[1617259755600,2.90695,1924.4,1924.3,64.6576]
[1617259757101,10.0,1924.8,1924.3,64.6576]
[1617259757301,10.0,1924.8,1924.7,66.4857]
[1617259757501,10.0,1924.8,1924.7,67.978]
[1617259758003,12.90695,1924.8,1924.7,4.39925]
[1617259758801,12.90695,1924.8,1924.3,134.2962]
[1617259759805,43.94395,1924.8,1924.3,134.2962]
[1617259760006,2.90695,1924.4,1924.3,134.2962]
[1617259762608,32.90695,1924.4,1924.3,134.2962]
[1617259765711,2.90695,1924.4,1924.3,134.2962]
[1617259769012,10.0,1924.8,1924.3,134.2962]
[1617259770214,10.0,1924.8,1924.6,2.90695]
[1617259772119,2.90695,1924.7,1924.6,2.90695]
[1617259772618,2.90695,1924.7,1924.6,16.19935]
[1617259786234,2.96742717,1924.7,1924.6,16.19935]
[1617259787335,2.90695,1924.7,1924.6,16.19935]
[1617259789137,33.94045,1924.7,1924.6,16.19935]
[1617259789339,33.94045,1924.7,1924.6,13.2924]
[1617259789738,33.94045,1924.7,1924.6,11.5437]
[1617259789938,34.66667319,1924.7,1924.6,11.5437]
[1617259790338,33.94045,1924.7,1924.6,11.5437]
[1617259790739,34.90881928,1924.7,1924.6,89.6899]
[1617259790938,34.90881928,1924.7,1924.6,86.3218]
[1617259791139,34.90881928,1924.7,1924.6,86.0998]
[1617259791338,34.90881928,1924.7,1924.6,83.9484]
[1617259791539,34.90881928,1924.7,1924.6,2.6931]
[1617259791742,34.90881928,1924.7,1924.6,0.6431]
[1617259791939,34.90881928,1924.7,1924.3,50.0]
[1617259792139,35.15100742,1924.7,1924.3,49.1321]
[1617259792337,75.9113,1924.4,1924.3,49.1321]
[1617259792539,110.95310319,1924.4,1924.3,49.1321]
[1617259792837,111.14052647,1924.4,1924.3,49.1321]
[1617259793138,111.14052647,1924.4,1924.3,49.0533]
[1617259793539,111.14052647,1924.4,1924.3,48.0533]
[1617259794139,111.14052647,1924.4,1924.3,47.0109]
[1617259794741,35.22922647,1924.4,1924.3,47.0109]
[1617259794940,33.82072647,1924.4,1924.3,47.0109]
[1617259795240,34.54705204,1924.4,1924.3,47.0109]
[1617259796041,34.79081695,1924.4,1924.3,47.0109]
[1617259796641,34.79081695,1924.4,1924.3,45.9039]
[1617259796842,33.82072647,1924.4,1924.3,44.8859]
[1617259797443,35.03338461,1924.4,1924.3,44.8859]
[1617259797843,35.03338461,1924.4,1924.3,44.4204]
[1617259798042,35.03338461,1924.4,1924.3,44.3574]
[1617259798244,98.36062647,1924.4,1924.3,44.3574]
[1617259798643,99.57327528,1924.4,1924.3,44.3574]
[1617259799345,98.36062647,1924.4,1924.3,44.3574]
[1617259799947,99.57328542,1924.4,1924.3,44.3574]
[1617259800345,99.57328542,1924.4,1924.3,43.0304]
[1617259800645,98.36062647,1924.4,1924.3,43.0304]
[1617259805760,98.36062647,1924.4,1924.3,39.9592]
[1617259805960,98.36062647,1924.4,1924.3,37.8417]
[1617259806162,98.36062647,1924.4,1924.3,34.1121]
[1617259806360,98.36062647,1924.4,1924.3,33.1941]
[1617259806560,98.36062647,1924.4,1924.3,32.5461]
[1617259806760,98.36062647,1924.4,1924.3,31.9141]
[1617259807162,98.36062647,1924.4,1924.3,31.1126]
[1617259807662,100.48880358,1924.4,1924.3,31.1126]
[1617259807960,100.48880358,1924.4,1924.3,29.3436]
[1617259808763,98.36062647,1924.4,1924.3,29.3436]
[1617259809362,100.48769742,1924.4,1924.3,29.3436]
[1617259809663,100.48769742,1924.4,1924.3,28.2996]
[1617259809865,100.48769742,1924.4,1924.3,26.8242]
[1617259810064,37.94779742,1924.4,1924.3,23.0554]
[1617259810262,37.94779742,1924.4,1924.3,20.9904]
[1617259810463,35.82072647,1924.4,1924.3,20.2049]
[1617259810663,35.82072647,1924.4,1924.3,18.1541]
[1617259810863,44.94747749,1924.4,1924.3,17.9111]
[1617259811264,40.07274398,1924.4,1924.3,17.9111]
[1617259811464,40.07274398,1924.4,1924.3,16.8687]
[1617259811665,40.6955273,1924.4,1924.3,16.8687]
[1617259812269,44.94747395,1924.4,1924.3,16.8687]
[1617259812669,44.94747395,1924.4,1924.3,15.6768]
[1617259813070,124.39207395,1924.4,1924.3,14.0958]
[1617259813471,124.39207395,1924.4,1924.3,13.6267]
[1617259813672,130.66103596,1924.4,1924.3,13.6267]
[1617259814072,126.40908931,1924.4,1924.3,13.6267]
[1617259814881,126.40908931,1924.4,1924.3,12.5857]
[1617259815079,130.66123738,1924.4,1924.3,12.5857]
[1617259815879,130.66123738,1924.4,1924.3,11.5617]
[1617259816079,130.66123738,1924.4,1924.3,10.7807]
[1617259816281,126.40908931,1924.4,1924.3,10.7807]
[1617259816880,126.40908931,1924.4,1924.3,9.4829]
[1617259817080,126.40908931,1924.4,1924.3,8.4494]
[1617259817681,130.66119537,1924.4,1924.3,8.4494]
[1617259818982,120.1401273,1924.4,1924.3,8.4494]
[1617259819581,120.1401273,1924.4,1924.3,7.4124]
[1617259819782,120.1401273,1924.4,1924.3,7.0041]
[1617259820781,120.1401273,1924.4,1924.3,5.9751]
[1617259821380,120.1401273,1924.4,1924.3,5.4256]
[1617259822181,120.1401273,1924.4,1924.3,5.3513]
[1617259822582,124.38607522,1924.4,1924.3,0.2915]
[1617259825587,124.38607522,1924.4,1924.0,48.6669]
[1617259826087,30.0,1924.1,1924.0,48.6669]
[1617259826287,30.0,1924.1,1924.0,46.3289]
[1617259826486,104.1845,1924.1,1924.0,46.3289]
[1617259826890,116.22402507,1924.1,1924.0,46.3289]
[1617259827188,116.22402507,1924.1,1924.0,45.2554]
[1617259828087,116.22402507,1924.1,1924.0,44.2054]
[1617259828888,116.22402507,1924.1,1924.0,43.1644]
[1617259829088,114.09960395,1924.1,1924.0,43.1644]
[1617259829390,117.13341461,1924.1,1924.0,43.1644]
[1617259829589,117.13341461,1924.1,1924.0,41.8744]
[1617259829990,117.13341461,1924.1,1924.0,41.6284]
[1617259830592,116.22076652,1924.1,1924.0,41.6284]
[1617259832195,116.22076652,1924.1,1924.0,40.1678]
[1617259832796,114.09960395,1924.1,1924.0,40.1678]
[1617259833896,114.09960395,1924.1,1924.0,39.7928]
[1617259834802,114.09960395,1924.1,1924.0,39.4177]
[1617259835604,114.09960395,1924.1,1924.0,39.1327]
[1617259836207,110.43435737,1924.1,1924.0,38.0897]
[1617259836708,109.22436642,1924.1,1924.0,37.7107]
[1617259836907,109.22436642,1924.1,1924.0,37.1727]
[1617259837308,109.22436642,1924.1,1924.0,35.6334]
[1617259837510,110.43435142,1924.1,1924.0,35.6334]
[1617259839212,109.22436642,1924.1,1924.0,34.6024]
[1617259839614,110.43436126,1924.1,1924.0,34.4066]
[1617259839812,110.43436126,1924.1,1924.0,33.6327]
[1617259840013,109.22436642,1924.1,1924.0,33.6327]
[1617259840213,109.22436642,1924.1,1924.0,33.3137]
[1617259840713,110.43441041,1924.1,1924.0,33.3137]
[1617259840915,109.22436642,1924.1,1924.0,33.3137]
[1617259842113,109.22436642,1924.1,1924.0,32.283]
[1617259842313,109.22436642,1924.1,1924.0,45.5754]
[1617259842714,110.43363041,1924.1,1924.0,45.5754]
[1617259843314,110.43363041,1924.1,1924.0,43.8244]
[1617259843515,110.43363041,1924.1,1924.0,43.3012]
[1617259845016,109.22436642,1924.1,1924.0,43.3012]
[1617259845316,109.22436642,1924.1,1924.0,43.0313]
[1617259845517,35.03986642,1924.1,1924.0,41.5663]
[1617259845717,35.03986642,1924.1,1924.0,41.0402]
[1617259846817,35.03986642,1924.1,1924.0,40.0146]
[1617259847018,35.03986642,1924.1,1924.0,39.2433]
[1617259847719,36.24914255,1924.1,1924.0,39.2433]
[1617259847919,36.24914255,1924.1,1924.0,38.9953]
[1617259849622,36.24914255,1924.1,1924.0,38.8914]
[1617259850122,36.24914255,1924.1,1924.0,36.7884]
[1617259851426,36.24914255,1924.1,1924.0,35.7364]
[1617259851824,36.24914255,1924.1,1924.0,34.4284]
[1617259852224,35.03986642,1924.1,1924.0,34.3326]
[1617259854731,35.03986642,1924.1,1924.0,34.2458]
[1617259854931,35.03986642,1924.1,1924.0,34.0916]
[1617259855531,35.03986642,1924.1,1924.0,33.946]
[1617259855732,35.03986642,1924.1,1924.0,31.6893]
[1617259855932,35.03986642,1924.1,1924.0,29.8958]
[1617259856133,35.03986642,1924.1,1924.0,28.9442]
[1617259856932,36.24904765,1924.1,1924.0,28.9442]
[1617259857132,36.24904765,1924.1,1924.0,28.5241]
[1617259857935,35.03986642,1924.1,1924.0,28.5241]
[1617259858132,35.03986642,1924.1,1924.0,27.518]
[1617259858333,36.24904454,1924.1,1924.0,27.518]
[1617259858732,35.03986642,1924.1,1924.0,27.518]
[1617259859135,35.03986642,1924.1,1924.0,26.4846]
[1617259859436,36.24904862,1924.1,1924.0,26.4846]
[1617259860035,36.24904862,1924.1,1924.0,25.9564]
[1617259861836,35.03986642,1924.1,1924.0,25.9564]
[1617259862036,35.03986642,1924.1,1924.0,25.1847]
[1617259862236,35.03986642,1924.1,1924.0,24.698]
[1617259862237,36.24902824,1924.1,1924.0,24.698]
[1617259863336,36.24902824,1924.1,1924.0,23.9971]
[1617259863538,36.24902824,1924.1,1924.0,20.3774]
[1617259863737,36.24902824,1924.1,1924.0,20.2902]
[1617259863937,36.24902824,1924.1,1924.0,18.7115]
[1617259864136,36.24902824,1924.1,1924.0,17.9695]
[1617259864137,35.03986642,1924.1,1924.0,17.9695]
[1617259864339,35.03986642,1924.1,1924.0,15.0803]
[1617259864737,39.91592318,1924.1,1924.0,15.0803]
[1617259866537,39.91592318,1924.1,1924.0,13.2947]
[1617259866738,39.91592318,1924.1,1923.5,63.4004]
[1617259866939,58.7053,1923.9,1923.5,61.8369]
[1617259867137,32.90695,1923.6,1923.5,61.8369]
[1617259867337,33.96125,1923.6,1923.5,61.8369]
[1617259867542,34.87555163,1923.6,1923.5,60.8069]
[1617259867738,34.87555163,1923.6,1922.0,2.90695]
[1617259867937,69.2196,1923.3,1922.6,69.2196]
[1617259868137,0.03022769,1922.9,1922.6,69.2196]